bitfinex/quotes_SOLUSD_20250714
["timestamp","ask_amount","ask_price","bid_price","bid_amount"]
[1752504162078,33.53251339,166.11,166.06,10.18007945]
[1752504162267,32.78,166.11,166.05,6.6627]
[1752504162585,32.78,166.11,166.06,10.18007945]
[1752504162789,32.78,166.11,166.07,10.18007945]
[1752504163086,10.18007945,166.1,166.06,1.5337]
[1752504163390,10.18007945,166.09,166.05,6.6627]
[1752504163568,10.93263814,166.1,166.05,6.6627]
[1752504164173,16.9532019,166.1,166.05,16.84277945]
[1752504164677,16.20064321,166.1,166.05,6.6627]
[1752504164883,10.18007945,166.09,166.05,6.6627]
[1752504165256,10.18007945,166.07,166.02,11.74377945]
[1752504166174,10.18007945,166.07,166.02,1.5637]
[1752504166382,6.02083207,166.09,166.02,1.5637]
[1752504166573,10.18007945,166.07,166.02,11.74377945]
[1752504166772,0.752604,166.09,166.04,10.18007945]
[1752504167088,32.72,166.1,166.05,10.18007945]
[1752504167290,32.72,166.1,166.06,10.18007945]
[1752504167787,32.72,166.1,166.08,10.18007945]
[1752504167964,32.72,166.1,166.02,1.89971699]
[1752504168170,32.72,166.1,166.07,10.18007945]
[1752504168471,32.72,166.1,166.05,10.18007945]
[1752504168869,32.72,166.1,166.06,10.18007945]
[1752504169279,32.72,166.1,166.08,10.18007945]
[1752504169680,0.06,166.11,166.08,10.18007945]
[1752504169887,0.06,166.11,166.06,10.18007945]
[1752504170401,0.06,166.11,166.07,10.18007945]
[1752504170803,0.06,166.11,166.06,10.18007945]
[1752504171098,10.18007945,166.08,166.02,117.1637]
[1752504171294,10.18007945,166.06,166.02,1.5637]
[1752504172079,10.18007945,166.07,166.02,1.5637]
[1752504173468,10.18007945,166.05,166.02,1.5637]
[1752504173789,10.18007945,166.04,166.02,0.03]
[1752504174576,1.2396,166.04,166.02,0.03]
[1752504174776,16.78468397,166.02,166.0,0.03]
[1752504174982,17.53765065,166.01,166.0,0.03]
[1752504175199,27.7177301,166.01,166.0,0.03]
[1752504176566,32.99031174,165.96,165.95,0.03]
[1752504176771,65.69031174,165.96,165.93,0.03]
[1752504176974,26.96476342,165.94,165.9,0.2]
[1752504177188,0.75332971,165.93,165.9,0.2]
[1752504177392,10.18007945,165.91,165.9,0.2]
[1752504177592,42.88007945,165.94,165.9,0.2]
[1752504177979,32.7,165.94,165.92,26.0]
[1752504178294,32.7,165.94,165.93,26.0]
[1752504179505,32.7,165.94,165.93,26.03]
[1752504179687,32.7,165.95,165.93,26.03]
[1752504180000,42.88007945,165.95,165.93,26.03]
[1752504180909,42.88007945,165.95,165.93,0.03]
[1752504181085,42.88007945,165.95,165.93,26.03]
[1752504181500,48.90604685,165.95,165.93,26.03]
[1752504181713,42.88007945,165.95,165.93,26.03]
[1752504182287,10.93327299,165.96,165.93,26.03]
[1752504182593,0.75310278,165.98,165.94,26.0]
[1752504182796,32.7,165.97,165.94,36.18007945]
[1752504182981,32.7,165.97,165.93,10.21007945]
[1752504184204,32.7,165.97,165.94,10.18007945]
[1752504184413,10.18007945,166.04,165.96,10.18007945]
[1752504184710,32.7,166.03,166.0,10.18007945]
[1752504184913,32.7,166.03,165.99,36.18007945]
[1752504185515,10.18007945,166.0,165.95,26.0]
[1752504185689,37.86398251,166.04,165.94,7.8077]
[1752504185690,10.18007945,165.97,165.94,7.8077]
[1752504186107,10.18007945,165.97,165.94,6.1663]
[1752504186620,32.7,165.96,165.94,6.1663]
[1752504186909,10.18007945,165.95,165.93,0.03]
[1752504187508,42.88007945,165.96,165.93,0.03]
[1752504187714,32.7,165.96,165.93,0.03]
[1752504188211,32.7,165.96,165.93,10.21007945]
[1752504188695,32.7,165.96,165.93,0.03]
[1752504188892,10.18007945,165.95,165.93,0.03]
[1752504189106,42.88007945,165.96,165.93,0.03]
[1752504189409,32.7,165.97,165.94,10.18007945]
[1752504190817,32.7,165.97,165.93,0.03]
[1752504190818,32.7,165.97,165.93,10.21007945]
[1752504191133,32.7,165.97,165.93,0.03]
[1752504191422,48.90527815,165.97,165.93,0.03]
[1752504191591,10.18007945,165.96,165.93,0.03]
[1752504192090,32.7,165.97,165.93,0.03]
[1752504192286,32.7,165.97,165.93,10.21007945]
[1752504192519,32.7,165.97,165.93,0.03]
[1752504192699,32.7,165.97,165.93,10.21007945]
[1752504193192,32.7,165.97,165.93,0.03]
[1752504193390,32.76,165.97,165.93,0.03]
[1752504194822,0.06,165.97,165.96,11.84317945]
[1752504195128,0.75264932,166.08,165.97,16.78468397]
[1752504195288,32.7,166.07,166.04,10.18007945]
[1752504195493,43.63272877,166.08,166.03,10.18007945]
[1752504195693,43.63272877,166.08,166.02,10.18007945]
[1752504195989,43.63272877,166.08,166.03,10.18007945]
[1752504196424,43.63272877,166.08,166.02,10.18007945]
[1752504196618,43.63272877,166.08,166.03,10.18007945]
[1752504196814,33.45264932,166.08,166.03,10.18007945]
[1752504197524,10.18007945,166.06,165.96,123.8149]
[1752504197694,32.7,166.05,166.01,10.18007945]
[1752504198096,32.7,166.05,165.97,0.33636487]
[1752504198517,32.7,166.05,166.01,10.18007945]
[1752504199105,33.4527853,166.05,166.01,10.18007945]
[1752504199413,32.7,166.05,166.01,10.18007945]
[1752504199922,10.93291009,166.04,165.98,10.18007945]
[1752504200102,10.18007945,166.03,165.98,10.18007945]
[1752504200304,32.7,166.02,165.98,10.18007945]
[1752504201904,32.7,166.02,165.99,10.18007945]
[1752504202726,32.7,166.02,165.98,10.18007945]
[1752504203623,32.7,166.05,166.01,10.18007945]
[1752504203923,32.7,166.05,166.03,10.18007945]
[1752504204423,32.7,166.05,165.98,89.93641508]
[1752504204811,32.7,166.05,166.02,10.18007945]
[1752504205014,32.7,166.05,165.98,89.93641508]
[1752504205214,32.7,166.05,166.02,10.18007945]
[1752504207233,39.47507037,166.05,166.0,10.18007945]
[1752504207524,10.18007945,166.03,165.98,89.6]
[1752504207723,32.68,166.02,165.98,89.6]
[1752504207926,42.86007945,166.02,165.98,89.6]
[1752504208603,32.68,166.02,165.99,10.18007945]
[1752504209610,32.68,166.02,166.0,10.18007945]
[1752504209818,32.68,166.02,165.98,89.6]
[1752504209819,6.02175025,166.07,166.01,10.18007945]
[1752504210104,32.68,166.06,166.03,10.18007945]
[1752504210414,32.68,166.06,166.02,10.18007945]
[1752504210810,32.68,166.06,166.03,10.18007945]
[1752504211134,32.68,166.06,166.05,10.18007945]
[1752504211510,32.68,166.06,166.04,10.18007945]
[1752504212037,32.68,166.06,165.99,115.6]
[1752504212221,32.68,166.06,166.04,10.18007945]
[1752504212530,0.75255869,166.1,166.05,10.18007945]
[1752504212731,0.06,166.11,166.09,10.18007945]
[1752504212930,0.06,166.11,166.08,10.18007945]
[1752504213232,0.06,166.11,166.05,0.33556886]
[1752504213430,0.81251339,166.11,166.07,10.18007945]
[1752504213737,0.06,166.11,166.07,10.18007945]
[1752504214133,0.81251339,166.11,166.07,10.18007945]
[1752504214324,0.06,166.11,166.07,10.18007945]
[1752504214534,0.06,166.11,166.08,10.18007945]
[1752504214833,0.06,166.11,166.09,10.18007945]
[1752504215230,0.06,166.11,166.08,10.18007945]
[1752504215615,0.06,166.11,166.07,10.18007945]
[1752504215821,0.06,166.11,166.04,97.3201]
[1752504215822,10.18007945,166.09,166.04,95.6591]
[1752504216021,10.18007945,166.09,166.0,8.1979]
[1752504216022,10.93272877,166.08,166.0,8.1979]
[1752504216346,10.18007945,166.07,166.02,10.18007945]
[1752504216536,33.41273997,166.06,166.01,10.18007945]
[1752504216723,33.41273997,166.06,166.02,10.18007945]
[1752504217446,6.02228244,166.05,166.02,10.18007945]
[1752504218017,39.434794,166.06,166.02,10.18007945]
[1752504218918,49.61487345,166.06,166.01,10.18007945]
[1752504219118,10.18007945,166.05,166.0,18.37797945]
[1752504219336,10.93291009,166.04,165.97,0.03]
[1752504219640,48.86317141,166.03,165.98,10.18007945]
[1752504219839,48.86317141,166.03,165.99,10.18007945]
[1752504219840,32.66,166.03,165.99,10.18007945]
[1752504220014,38.68309767,166.03,165.98,10.18007945]
[1752504220216,49.6160531,166.03,165.98,10.18007945]
[1752504220637,10.18007945,166.02,165.97,0.03]
[1752504220826,39.43597365,166.03,165.97,0.03]
[1752504220827,10.93304613,166.01,165.97,0.03]
[1752504221033,10.93300078,166.02,165.97,10.21007945]
[1752504221419,0.75292133,166.02,165.98,10.18007945]
[1752504221631,10.93300078,166.02,165.97,0.03]
[1752504221831,10.93300078,166.02,165.97,10.21007945]
[1752504222647,32.66,166.03,166.0,10.18007945]
[1752504222821,0.75269464,166.07,166.02,10.18007945]
[1752504223142,32.66,166.07,166.03,10.18007945]
[1752504223347,43.59277409,166.07,166.02,10.18007945]
[1752504223730,6.02191978,166.06,166.02,10.18007945]
[1752504223934,6.02191978,166.06,165.97,89.96632964]
[1752504224134,33.41269464,166.07,166.02,10.18007945]
[1752504224433,32.66,166.07,166.03,10.18007945]
[1752504224628,38.68160405,166.07,166.02,10.18007945]
[1752504224949,32.66,166.07,166.03,10.18007945]
[1752504225441,32.66,166.07,166.04,10.18007945]
[1752504226249,48.86168654,166.07,166.0,26.0]
[1752504226546,32.66,166.07,166.02,10.18007945]
[1752504226726,32.66,166.07,166.03,10.18007945]
[1752504227123,32.66,166.07,166.06,10.18007945]
[1752504227424,26.0,166.09,166.06,10.18007945]
[1752504227629,48.86078278,166.1,166.05,10.18007945]
[1752504228347,48.86078278,166.1,166.01,89.936002]
[1752504228531,48.86078278,166.1,166.05,10.18007945]
[1752504229927,48.86078278,166.1,166.01,89.936002]
[1752504230151,48.86078278,166.1,166.05,10.18007945]
[1752504231251,48.86078278,166.1,166.01,89.936002]
[1752504231252,10.18007945,166.09,166.04,10.18007945]
[1752504231430,0.75264932,166.08,166.01,89.6]
[1752504231630,10.93272877,166.08,166.02,10.18007945]
[1752504232348,10.93272877,166.08,166.03,10.18007945]
[1752504232551,42.82007945,166.07,166.02,10.18007945]
[1752504232750,10.93281942,166.06,166.01,99.78007945]
[1752504233346,6.02228244,166.05,166.01,89.6]
[1752504233552,16.9548193,166.06,166.01,89.6]
[1752504233728,10.18007945,166.05,166.0,10.18007945]
[1752504234441,10.18007945,166.04,165.99,10.18007945]
[1752504234750,32.64,166.04,165.99,99.78007945]
[1752504235947,32.64,166.04,166.0,10.18007945]
[1752504236251,32.64,166.05,166.03,10.18007945]
[1752504237060,32.59936122,166.05,166.03,10.18007945]
[1752504237251,32.59936122,166.05,165.99,17.12093785]
[1752504237442,32.64,166.08,166.04,10.18007945]
[1752504239555,49.59404599,166.08,166.03,10.18007945]
[1752504239751,49.59404599,166.08,166.02,10.18007945]
[1752504239939,10.18007945,166.05,166.0,36.18007945]
[1752504240255,10.18007945,166.06,166.01,10.18007945]
[1752504240451,42.80007945,166.05,165.99,10.18007945]
[1752504240637,10.18007945,166.04,165.99,10.18007945]
[1752504240831,10.18007945,166.03,165.98,10.18007945]
[1752504241034,10.93300078,166.02,165.97,0.03]
[1752504241237,10.18007945,166.0,165.97,0.03]
[1752504241554,48.82384059,166.01,165.97,0.03]
[1752504242047,42.80007945,166.01,165.97,0.03]
[1752504242257,49.57683678,166.01,165.97,0.03]
[1752504242429,10.18007945,166.0,165.97,0.03]
[1752504242625,10.18007945,165.98,165.97,0.03]
[1752504242839,42.80007945,165.98,165.97,0.03]
[1752504243250,32.62,165.98,165.97,0.03]
[1752504243838,32.62,165.98,165.97,10.21007945]
[1752504244157,33.37296668,166.01,165.97,10.21007945]
[1752504244533,39.39670282,166.01,165.97,0.03]
[1752504244735,10.18007945,165.99,165.97,0.03]
[1752504245245,39.39670282,166.01,165.97,0.03]
[1752504245246,10.18007945,166.0,165.97,0.03]
[1752504245448,26.0,165.96,165.93,0.03]
[1752504245637,36.18007945,165.94,165.93,0.03]
[1752504245838,68.96007945,165.94,165.93,0.03]
[1752504246043,59.74476342,165.94,165.93,0.03]
[1752504246240,59.74476342,165.94,165.9,0.2]
[1752504246241,36.18007945,165.91,165.9,0.2]
[1752504246443,68.98007945,165.91,165.9,0.2]
[1752504246641,85.76476342,165.91,165.9,0.2]
[1752504246835,68.98007945,165.91,165.9,0.2]
[1752504247035,26.0,165.87,165.86,0.03]
[1752504247242,68.98007945,165.87,165.86,0.03]
[1752504247453,75.7624994,165.87,165.86,0.03]
[1752504247937,92.54718337,165.87,165.86,1e-08]
[1752504248341,82.36710392,165.87,165.86,1e-08]
[1752504248551,16.78468397,165.86,165.85,1e-08]
[1752504248747,26.96476342,165.86,165.83,0.2]
[1752504249073,26.96476342,165.84,165.83,1e-08]
[1752504249562,22.81459231,165.84,165.83,1e-08]
[1752504249771,32.99467176,165.84,165.83,1e-08]
[1752504249954,22.81459231,165.84,165.83,1e-08]
[1752504250138,10.18007945,165.84,165.83,1e-08]
[1752504250334,0.75369309,165.85,165.83,1e-08]
[1752504250661,32.82,165.84,165.83,10.18007946]
[1752504251061,0.75360221,165.87,165.83,10.18007946]
[1752504251232,31.85161366,165.93,165.83,10.18007946]
[1752504251233,6.02736423,165.91,165.83,6.08530001]
[1752504251440,33.63346594,165.9,165.83,6.42293632]
[1752504251636,32.88,165.9,165.88,10.18007945]
[1752504251861,32.88,165.9,165.89,10.18007945]
[1752504252047,26.75337512,165.92,165.89,10.18007945]
[1752504252250,32.88,165.92,165.91,10.18007945]
[1752504252564,6.77853631,165.97,165.91,10.18007945]
[1752504252766,6.77853631,165.97,165.87,16.78468397]
[1752504252767,32.88,165.96,165.94,10.18007945]
[1752504253067,32.88,165.96,165.94,15.52662679]
[1752504253447,0.75305741,165.99,165.95,15.52662679]
[1752504253658,32.88,165.98,165.97,15.52662679]
[1752504253867,32.88,165.98,165.96,15.52662679]
[1752504254443,32.88,165.98,165.97,15.52662679]
[1752504256668,32.82,166.02,165.95,26.0]
[1752504256858,0.75296668,166.01,165.96,15.52662679]
[1752504257048,16.27959347,166.01,165.96,15.52662679]
[1752504257562,16.27959347,166.01,165.93,15.52662679]
[1752504257563,15.52662679,165.99,165.93,15.52662679]
[1752504257766,33.57310278,165.98,165.94,15.52662679]
[1752504258146,49.09972957,165.98,165.93,15.52662679]
[1752504258361,33.57310278,165.98,165.94,15.52662679]
[1752504258558,0.75292133,166.02,165.97,15.52662679]
[1752504258776,32.8,166.01,165.97,15.52662679]
[1752504258953,0.75301204,166.0,165.97,15.52662679]
[1752504259268,49.07959347,166.01,165.96,15.52662679]
[1752504259567,33.55296668,166.01,165.94,15.52662679]
[1752504259775,15.52662679,165.98,165.93,15.52662679]
[1752504259945,15.52662679,165.98,165.9,33.987]
[1752504259946,33.55314815,165.97,165.9,7.987]
[1752504260149,15.52662679,165.94,165.9,7.987]
[1752504260456,49.1799565,165.93,165.9,6.4686]
[1752504260659,15.52662679,165.91,165.86,15.52662679]
[1752504260849,15.52662679,165.9,165.85,7.7411]
[1752504261050,32.88,165.89,165.85,7.7411]
[1752504261467,15.52662679,165.87,165.83,1e-08]
[1752504261642,33.63364765,165.86,165.83,1e-08]
[1752504261958,32.88,165.86,165.83,1e-08]
[1752504263443,16.28013815,165.89,165.84,15.52662679]
[1752504263666,32.86,165.88,165.84,15.52662679]
[1752504264475,6.77904461,165.96,165.87,15.52662679]
[1752504264651,32.86,165.95,165.9,15.52662679]
[1752504264977,0.75328431,165.94,165.9,15.52662679]
[1752504265186,0.75328431,165.94,165.89,15.52662679]
[1752504265471,32.86,165.95,165.92,15.52662679]
[1752504266565,32.86,165.95,165.87,0.33709653]
[1752504266566,0.75328431,165.94,165.87,0.33709653]
[1752504266742,0.75328431,165.94,165.91,15.52662679]
[1752504266946,32.86,165.95,165.92,15.52662679]
[1752504267585,22.30446447,165.99,165.93,15.52662679]
[1752504267784,32.82,165.98,165.93,15.52662679]
[1752504267985,0.75296668,166.01,165.97,15.52662679]
[1752504268153,32.8,166.0,165.97,15.52662679]
[1752504268484,48.32662679,166.0,165.95,15.52662679]
[1752504268671,0.75305741,165.99,165.96,15.52662679]
[1752504268849,32.8,166.0,165.96,15.52662679]
[1752504269051,32.8,166.0,165.97,15.52662679]
[1752504269281,32.8,166.0,165.96,15.52662679]
[1752504270187,38.82411585,166.0,165.96,15.52662679]
[1752504270483,0.75305741,165.99,165.95,15.52662679]
[1752504270663,32.8,166.0,165.96,15.52662679]
[1752504270863,0.75305741,165.99,165.96,15.52662679]
[1752504271059,33.55301204,166.0,165.96,15.52662679]
[1752504271377,49.07963883,166.0,165.95,15.52662679]
[1752504271579,33.55301204,166.0,165.95,15.52662679]
[1752504271885,33.55301204,166.0,165.91,95.9707]
[1752504272185,33.55301204,166.0,165.96,15.52662679]
[1752504272482,15.52662679,166.01,165.91,6.3707]
[1752504272483,32.74,166.01,165.99,15.52662679]
[1752504272672,32.74,166.01,166.0,15.52662679]
[1752504273209,32.72,166.03,166.0,15.52662679]
[1752504273357,22.30016462,166.09,166.02,15.52662679]
[1752504273563,32.72,166.08,166.01,6.80606677]
[1752504273762,38.7414494,166.08,166.05,15.52662679]
[1752504274067,38.741314,166.08,166.04,15.52662679]
[1752504274582,38.741314,166.08,166.07,15.52662679]
[1752504274583,32.72,166.08,166.07,15.52662679]
[1752504274783,38.7412021,166.08,166.04,15.52662679]
[1752504274957,39.49385142,166.08,166.04,15.52662679]
[1752504275159,33.47264932,166.08,166.04,15.52662679]
[1752504275388,33.47264932,166.08,166.05,15.52662679]
[1752504275774,32.72,166.08,166.05,15.52662679]
[1752504277161,32.72,166.08,166.01,96.40599632]
[1752504277359,32.72,166.08,166.07,15.52662679]
[1752504278077,32.72,166.08,166.02,17.1204896]
[1752504278297,32.72,166.08,166.05,15.52662679]
[1752504278471,32.72,166.08,166.06,15.52662679]
[1752504279193,0.06,166.11,166.07,10.14341942]
[1752504279395,32.7,166.11,166.1,10.14341942]
[1752504279685,32.7,166.11,166.04,16.78468397]
[1752504279861,32.7,166.11,166.1,10.14341942]
[1752504280267,32.7,166.11,166.09,10.14341942]
[1752504281074,32.7,166.11,166.1,10.14341942]
[1752504281273,0.06,166.11,166.1,10.14341942]
[1752504281478,0.06,166.11,166.1,16.30641942]
[1752504281989,0.06,166.11,166.1,132.83452281]
[1752504282188,0.1,166.13,166.12,42.78468397]
[1752504282383,0.06,166.14,166.13,16.78468397]
[1752504282688,0.1,166.16,166.13,26.92810339]
[1752504282875,0.1,166.16,166.15,10.14341942]
[1752504283788,0.06,166.21,166.15,26.92810339]
[1752504284089,0.06,166.21,166.17,26.92810339]
[1752504284273,0.06,166.21,166.17,16.78468397]
[1752504284481,10.95548006,166.21,166.12,115.6]
[1752504284690,10.14341942,166.19,166.14,10.14341942]
[1752504284887,43.71548006,166.21,166.16,10.14341942]
[1752504285075,33.57206064,166.21,166.16,15.48529468]
[1752504285397,32.82,166.21,166.17,15.48529468]
[1752504285705,0.06,166.21,166.17,32.26997865]
[1752504286795,0.06,166.21,166.17,40.08397865]
[1752504288380,0.06,166.21,166.2,32.26997865]
[1752504289874,0.06,166.21,166.2,15.48529468]
[1752504290077,0.06,166.21,166.18,15.48529468]
[1752504290623,0.06,166.21,166.17,21.64339468]
[1752504290804,0.06,166.21,166.18,15.48529468]
[1752504291101,0.06,166.21,166.2,15.48529468]
[1752504293798,0.06,166.21,166.2,17.15109468]
[1752504294401,0.06,166.21,166.2,33.93577865]
[1752504294593,0.06,166.21,166.2,17.15109468]
[1752504295201,0.06,166.21,166.2,33.93577865]
[1752504295519,0.06,166.21,166.2,17.15109468]
[1752504295716,0.06,166.21,166.2,15.48529468]
[1752504296730,0.1,166.22,166.21,16.78468397]
[1752504296912,0.1,166.22,166.21,32.60441521]
[1752504297498,0.1,166.23,166.22,18.41408397]
[1752504297712,0.1,166.23,166.22,98.68387865]
[1752504297919,0.1,166.23,166.22,99.01822472]
[1752504299037,0.1,166.23,166.22,73.01822472]
[1752504299201,0.1,166.24,166.23,32.26997865]
[1752504300318,0.1,166.25,166.23,32.26997865]
[1752504300635,0.1,166.25,166.24,58.60417896]
[1752504300834,0.1,166.25,166.22,7.6539]
[1752504301135,0.1,166.25,166.24,15.48529468]
[1752504302022,0.1,166.25,166.24,58.26997865]
[1752504302323,0.06,166.31,166.26,16.78468397]
[1752504302506,0.06,166.31,166.26,91.30396288]
[1752504302912,0.06,166.31,166.26,75.8186682]
[1752504303107,0.06,166.31,166.26,91.30396288]
[1752504303928,0.06,166.31,166.26,15.48529468]
[1752504303929,6.07289923,166.31,166.26,15.48529468]
[1752504304106,15.54529468,166.31,166.23,16.78468397]
[1752504304305,6.01334798,166.3,166.25,15.48529468]
[1752504304608,6.11432362,166.27,166.22,21.50979468]
[1752504304818,15.48529468,166.26,166.21,15.48529468]
[1752504305030,6.11432362,166.27,166.21,15.48529468]
[1752504305237,15.48529468,166.25,166.18,8.1329]
[1752504305404,0.1,166.27,166.24,15.48529468]
[1752504305599,0.1,166.27,166.26,15.48529468]
[1752504306040,0.1,166.27,166.25,15.48529468]
[1752504306527,0.1,166.27,166.24,15.48529468]
[1752504307631,0.1,166.27,166.23,15.48529468]
[1752504308147,0.1,166.27,166.24,15.48529468]
[1752504308804,0.1,166.27,166.23,15.48529468]
[1752504309113,0.1,166.27,166.24,15.48529468]
[1752504309521,0.1,166.27,166.25,15.48529468]
[1752504310038,0.1,166.27,166.21,17.11884405]
[1752504310039,0.1,166.27,166.26,15.48529468]
[1752504310339,0.1,166.27,166.26,15.81931408]
[1752504310533,0.1,166.27,166.26,20.22860934]
[1752504311049,0.1,166.27,166.26,19.89458994]
[1752504311223,0.1,166.27,166.26,20.22860934]
[1752504311420,0.1,166.27,166.26,37.01329331]
[1752504312536,0.1,166.27,166.26,20.22860934]
[1752504312738,0.1,166.27,166.26,19.89458994]
[1752504312929,0.1,166.27,166.22,42.78468397]
[1752504313130,0.1,166.27,166.23,4.41651342]
[1752504313347,0.1,166.27,166.24,4.41651342]
[1752504313555,0.1,166.27,166.24,15.48529468]
[1752504313922,0.1,166.27,166.22,15.48529468]
[1752504314224,0.1,166.27,166.24,15.48529468]
[1752504314435,0.1,166.27,166.23,15.48529468]
[1752504314635,0.1,166.27,166.24,4.42371368]
[1752504314825,0.1,166.27,166.24,15.48529468]
[1752504315149,0.1,166.27,166.25,4.42364695]
[1752504315363,0.1,166.27,166.26,19.90920783]
[1752504317148,0.1,166.27,166.26,4.42391315]
[1752504317855,6.11431406,166.27,166.26,4.42391315]
[1752504318028,21.59960874,166.27,166.26,4.42391315]
[1752504318228,21.59960874,166.27,166.21,15.48529468]
[1752504318549,0.75183447,166.26,166.22,19.92940756]
[1752504318849,0.75183447,166.26,166.23,4.44411288]
[1752504319053,0.75183447,166.26,166.24,4.44411288]
[1752504319241,0.75183447,166.26,166.25,4.44411288]
[1752504319556,22.35140004,166.27,166.25,4.44411288]
[1752504319726,22.35140004,166.27,166.2,15.48529468]
[1752504319727,15.48529468,166.26,166.2,15.48529468]
[1752504319927,15.48529468,166.26,166.21,19.93349896]
[1752504319928,0.75187969,166.25,166.21,19.93349896]
[1752504320123,0.75187969,166.25,166.22,4.44820428]
[1752504320328,22.2525208,166.25,166.23,4.44820428]
[1752504320620,0.75187969,166.25,166.24,4.44820428]
[1752504321235,22.25182059,166.26,166.24,4.44820428]
[1752504321437,6.76652591,166.26,166.25,4.44820428]
[1752504321739,39.03650456,166.26,166.25,4.44820428]
[1752504321949,16.78468397,166.25,166.15,15.48529468]
[1752504322144,15.48529468,166.2,166.15,15.48529468]
[1752504322348,0.75192492,166.24,166.15,15.48529468]
[1752504322349,15.48529468,166.21,166.15,15.48529468]
[1752504322551,15.48529468,166.21,166.16,15.48529468]
[1752504323129,15.48529468,166.22,166.16,15.48529468]
[1752504323330,0.75197016,166.23,166.19,15.48529468]
[1752504323757,0.75197016,166.23,166.18,15.48529468]
[1752504323961,15.48529468,166.21,166.16,15.48529468]
[1752504324259,0.75210589,166.2,166.16,15.48529468]
[1752504324439,16.23740057,166.2,166.15,15.48529468]
[1752504324644,0.75210589,166.2,166.15,15.48529468]
[1752504324968,15.48529468,166.21,166.16,15.48529468]
[1752504325155,0.75210589,166.2,166.16,15.48529468]
[1752504325850,16.23731008,166.22,166.14,6.4594]
[1752504326043,15.48529468,166.21,166.16,15.48529468]
[1752504326241,0.7520154,166.22,166.16,15.48529468]
[1752504326242,0.75210589,166.2,166.16,15.48529468]
[1752504326442,16.23735532,166.21,166.16,15.48529468]
[1752504326648,16.23735532,166.21,166.15,15.48529468]
[1752504326649,15.48529468,166.2,166.15,15.48529468]
[1752504326850,0.75215115,166.19,166.14,21.94469468]
[1752504327045,0.75215115,166.19,166.1,6.1302]
[1752504327245,15.48529468,166.15,166.1,0.03]
[1752504327445,15.48529468,166.13,166.1,0.03]
[1752504327646,15.48529468,166.16,166.1,15.51529468]
[1752504327848,0.75233222,166.15,166.1,15.51529468]
[1752504328046,15.48529468,166.14,166.1,0.03]
[1752504328245,0.7524228,166.13,166.1,0.03]
[1752504328440,0.7524228,166.13,166.11,15.48529468]
[1752504328664,0.75233222,166.15,166.11,15.48529468]
[1752504329048,0.75224168,166.17,166.1,0.03]
[1752504329259,0.75224168,166.17,166.13,15.48529468]
[1752504329475,0.75215115,166.19,166.16,15.48529468]
[1752504329643,0.7520154,166.22,166.12,32.62]
[1752504329838,0.7520154,166.22,166.18,15.48529468]
[1752504330265,0.7520154,166.22,166.15,1.5392]
[1752504330462,0.7520154,166.22,166.19,15.48529468]
[1752504330672,0.75192492,166.24,166.2,15.48529468]
[1752504330869,0.75187969,166.25,166.22,15.48529468]
[1752504331047,0.75187969,166.25,166.23,15.48529468]
[1752504331747,0.85178925,166.27,166.18,0.33432097]
[1752504332073,0.85178925,166.27,166.17,32.62]
[1752504332074,0.85178925,166.27,166.22,15.48529468]
[1752504332653,0.85178925,166.27,166.24,15.48529468]
[1752504332871,0.85178925,166.27,166.25,15.48529468]
[1752504333197,0.1,166.27,166.18,16.78468397]
[1752504333369,0.1,166.27,166.26,15.48529468]
[1752504334751,0.1,166.27,166.22,0.3340646]
[1752504334942,0.1,166.27,166.26,15.48529468]
[1752504335341,0.1,166.27,166.22,0.3340646]
[1752504335540,0.1,166.27,166.14,31.92439468]
[1752504335541,0.85178925,166.27,166.19,42.78468397]
[1752504335749,0.85178925,166.27,166.24,15.48529468]
[1752504335963,0.85178925,166.27,166.19,43.11909543]
[1752504336169,6.86610985,166.27,166.23,15.48529468]
[1752504336479,15.48529468,166.26,166.21,15.48529468]
[1752504336769,0.75187969,166.25,166.22,15.48529468]
[1752504337569,0.75187969,166.25,166.24,15.48529468]
[1752504337764,0.1,166.27,166.24,15.48529468]
[1752504337971,0.1,166.27,166.19,16.78468397]